bitfinex-derivatives/quotes_SOLF0:USTF0_20250320
["timestamp","ask_amount","ask_price","bid_price","bid_amount"]
[1742447288958,0.05058743,133.1,133.09,7.5128]
[1742447289459,0.05058743,133.1,133.07,37.33134885]
[1742447289659,0.05058743,133.1,133.08,7.513]
[1742447290855,0.05058743,133.1,133.09,7.5128]
[1742447291762,0.05058743,133.1,133.08,7.513]
[1742447300669,0.05058743,133.1,133.09,7.5128]
[1742447307768,0.05058743,133.1,133.09,18.46414885]
[1742447307976,311.81238178,133.16,133.13,7.5105]
[1742447308367,319.32148178,133.16,133.13,7.5105]
[1742447309075,319.37345351,133.16,133.13,7.56247982]
[1742447310168,277.71242058,133.16,133.13,7.56247982]
[1742447310675,270.20332058,133.16,133.14,7.5099]
[1742447310974,270.20332058,133.16,133.13,0.05197982]
[1742447311171,11.00332058,133.16,133.13,0.05197982]
[1742447311675,18.51232058,133.16,133.13,7.56217982]
[1742447313776,7.56097173,133.16,133.13,7.56217982]
[1742447316375,0.05197173,133.16,133.14,7.5099]
[1742447316770,0.05197173,133.16,133.13,11.00332867]
[1742447316971,0.05197173,133.16,133.14,7.5099]
[1742447317174,0.05197173,133.16,133.13,11.00332867]
[1742447317579,0.05197173,133.16,133.15,7.5094]
[1742447317875,0.05197173,133.16,133.13,11.00332867]
[1742447318177,0.05197173,133.16,133.14,7.5097]
[1742447321378,0.05197173,133.16,133.15,7.5094]
[1742447325684,0.05197173,133.16,133.13,0.05197982]
[1742447326080,0.05197173,133.16,133.13,11.00332867]
[1742447326481,0.05197173,133.16,133.15,7.5094]
[1742447326681,0.05197173,133.16,133.15,44.82074885]
[1742447331788,259.2,133.21,133.2,7.5066]
[1742447331988,41.31354885,133.23,133.2,7.5066]
[1742447332186,48.81884885,133.23,133.2,7.5066]
[1742447332688,41.31354885,133.23,133.2,7.5066]
[1742447332889,7.5055,133.22,133.2,0.05640142]
[1742447333091,4.05856257,133.23,133.2,0.05640142]
[1742447333395,0.05636257,133.23,133.2,11.00775027]
[1742447334188,7.5054,133.22,133.2,11.00775027]
[1742447334496,7.5054,133.22,133.2,0.05640142]
[1742447335191,7.56146257,133.23,133.2,0.05640142]
[1742447337101,7.5055,133.22,133.2,0.05640142]
[1742447342500,7.506,133.21,133.2,0.05640142]
[1742447343000,0.05636257,133.23,133.2,0.05640142]
[1742447343001,7.5056,133.22,133.2,0.05640142]
[1742447343302,7.5056,133.22,133.2,11.00775027]
[1742447344397,0.05636257,133.23,133.2,11.00775027]
[1742447344398,7.506,133.21,133.2,0.05640142]
[1742447346598,7.5057,133.22,133.2,11.00775027]
[1742447349910,7.506,133.21,133.2,11.00775027]
[1742447350705,7.5057,133.22,133.2,11.00775027]
[1742447355105,7.506,133.21,133.2,0.05640142]
[1742447356011,7.5057,133.22,133.2,0.05640142]
[1742447358214,11.59376257,133.23,133.2,18.51425027]
[1742447358410,4.08866257,133.23,133.2,11.00775027]
[1742447358911,11.59386257,133.23,133.2,18.51385027]
[1742447359611,11.59386257,133.23,133.21,7.5059]
[1742447359808,4.08866257,133.23,133.21,10.95134885]
[1742447360010,0.05636257,133.23,133.22,10.95134885]
[1742447360503,0.05636257,133.23,133.21,37.29134885]
[1742447362012,0.05636257,133.23,133.21,44.79724885]
[1742447362814,7.56126257,133.23,133.21,37.29134885]
[1742447363013,0.05636257,133.23,133.21,26.34]
[1742447363213,0.05636257,133.23,133.2,37.34775027]
[1742447363412,7.5059,133.22,133.2,26.39640142]
[1742447367101,7.56146257,133.23,133.2,33.90290142]
[1742447368110,7.56146257,133.23,133.21,10.95134885]
[1742447370014,0.05636257,133.23,133.21,18.45714885]
[1742447371210,7.56126257,133.23,133.21,10.95134885]
[1742447373619,0.05636257,133.23,133.21,18.45734885]
[1742447374612,0.05636257,133.23,133.22,7.5054]
[1742447377921,0.05636257,133.23,133.21,18.45704885]
[1742447378822,0.05636257,133.23,133.22,7.5054]
[1742447384521,0.05636257,133.23,133.21,10.95134885]
[1742447384729,0.05636257,133.23,133.2,0.05640142]
[1742447385025,7.5059,133.22,133.2,0.05640142]
[1742447385222,11.00771142,133.23,133.2,0.05640142]
[1742447385625,7.506,133.21,133.2,0.05640142]
[1742447386426,18.45734885,133.21,133.2,0.05640142]
[1742447386626,7.5076,133.19,133.16,44.79984885]
[1742447386927,39.37194885,133.22,133.17,10.95134885]
[1742447387126,7.507,133.2,133.17,18.45954885]
[1742447387726,7.56363465,133.2,133.17,18.51031644]
[1742447388528,0.05663465,133.2,133.18,10.95134885]
[1742447389928,0.05663465,133.2,133.18,18.45904885]
[1742447390629,0.05663465,133.2,133.19,10.95134885]
[1742447390818,41.66103293,133.26,133.19,494.29134885]
[1742447391132,124.89836444,133.28,133.25,10.95134885]
[1742447391326,124.89836444,133.28,133.27,18.45394885]
[1742447391526,124.89836444,133.28,133.27,44.79394885]
[1742447394432,0.0574236,133.29,133.28,7.5021]
[1742447394834,261.0638,133.33,133.31,7.4998]
[1742447395029,261.0638,133.33,133.3,37.29134885]
[1742447396030,261.11769776,133.33,133.3,37.34238489]
[1742447399441,259.05389776,133.33,133.3,44.84328489]
[1742447399640,0.05389776,133.33,133.3,44.84328489]
[1742447400340,0.05389776,133.33,133.3,37.34238489]
[1742447405242,0.05389776,133.33,133.3,26.39103604]
[1742447405541,11.00524661,133.33,133.3,0.05103604]
[1742447405740,7.4999,133.32,133.3,0.05103604]
[1742447407547,0.05389776,133.33,133.3,11.00238489]
[1742447407746,0.05389776,133.33,133.31,10.95134885]
[1742447409344,0.05389776,133.33,133.31,37.27134885]
[1742447409845,0.05389776,133.33,133.32,10.95134885]
[1742447410948,0.05389776,133.33,133.31,26.32]
[1742447411248,0.05389776,133.33,133.3,11.00238489]
[1742447411650,0.05389776,133.33,133.31,10.95134885]
[1742447412237,0.05389776,133.33,133.31,18.45164885]
[1742447412646,0.05389776,133.33,133.32,10.95134885]
[1742447413352,0.05389776,133.33,133.31,10.95134885]
[1742447414853,7.4998,133.32,133.31,10.95134885]
[1742447415059,0.05389776,133.33,133.31,10.95134885]
[1742447415357,0.05389776,133.33,133.31,18.45134885]
[1742447415857,0.05389776,133.33,133.31,10.95134885]
[1742447416360,7.55339776,133.33,133.31,10.95134885]
[1742447417058,7.55339776,133.33,133.31,18.45174885]
[1742447417251,0.05389776,133.33,133.31,18.45174885]
[1742447418549,7.55319776,133.33,133.31,10.95134885]
[1742447419663,0.05389776,133.33,133.31,18.45164885]
[1742447419865,0.05389776,133.33,133.32,10.95134885]
[1742447421759,0.05389776,133.33,133.32,37.27134885]
[1742447422569,0.05389776,133.33,133.32,44.77114885]
[1742447422959,0.05389776,133.33,133.32,26.32]
[1742447423158,0.05389776,133.33,133.3,11.00238489]
[1742447423362,11.00524661,133.33,133.3,0.05103604]
[1742447423665,7.5004,133.31,133.3,0.05103604]
[1742447429969,7.5,133.32,133.3,0.05103604]
[1742447430173,0.05389776,133.33,133.3,0.05103604]
[1742447430770,7.4998,133.32,133.3,0.05103604]
[1742447431175,0.05389776,133.33,133.3,0.05103604]
[1742447431565,7.5004,133.31,133.3,0.05103604]
[1742447437072,7.5,133.32,133.3,0.05103604]
[1742447437277,7.5,133.32,133.3,11.00238489]
[1742447438784,7.5,133.32,133.3,0.05103604]
[1742447439389,0.05389776,133.33,133.3,0.05103604]
[1742447440685,7.5001,133.32,133.3,0.05103604]
[1742447442489,7.55329776,133.33,133.3,7.55153604]
[1742447447992,7.55329776,133.33,133.31,10.95134885]
[1742447448295,7.55329776,133.33,133.31,18.45164885]
[1742447448994,0.05389776,133.33,133.31,18.45164885]
[1742447449382,0.05389776,133.33,133.31,10.95134885]
[1742447449587,7.55349776,133.33,133.31,10.95134885]
[1742447457696,7.55349776,133.33,133.31,18.45174885]
[1742447457997,0.05389776,133.33,133.31,18.45174885]
[1742447460097,7.55319776,133.33,133.31,10.95134885]
[1742447460300,0.05389776,133.33,133.3,11.00238489]
[1742447460597,7.5001,133.32,133.3,18.50308489]
[1742447462102,7.5001,133.32,133.3,11.00238489]
[1742447462596,7.55339776,133.33,133.3,18.50298489]
[1742447462800,7.55339776,133.33,133.3,11.00238489]
[1742447464499,7.55339776,133.33,133.3,18.50308489]
[1742447470004,0.05389776,133.33,133.31,7.5003]
[1742447470299,0.05389776,133.33,133.32,37.27134885]
[1742447470505,266.3965,133.38,133.35,7.4978]
[1742447470707,266.3965,133.38,133.35,18.44914885]
[1742447471303,266.3965,133.38,133.35,10.95134885]
[1742447471607,266.44562878,133.38,133.35,11.00340652]
[1742447471809,266.44562878,133.38,133.35,18.50130652]
[1742447472705,266.44562878,133.38,133.35,11.00340652]
[1742447474908,7.54562878,133.38,133.35,11.00340652]
[1742447475907,7.4971,133.37,133.35,11.00340652]
[1742447479611,7.4976,133.36,133.35,0.05205767]
[1742447483211,7.4996,133.33,133.31,37.25134885]
[1742447484408,7.4996,133.33,133.31,37.30819083]
[1742447484608,7.54895971,133.33,133.31,37.30819083]
[1742447484803,0.04935971,133.33,133.31,44.80849083]
[1742447485108,0.04935971,133.33,133.32,10.95134885]
[1742447485609,0.04935971,133.33,133.32,37.25134885]
[1742447486620,0.04935971,133.33,133.32,10.95134885]
[1742447486815,0.04935971,133.33,133.31,0.05684198]
[1742447488206,7.4998,133.32,133.31,0.05684198]
[1742447488613,0.04935971,133.33,133.31,0.05684198]
[1742447488817,7.54895971,133.33,133.31,0.05684198]
[1742447489612,0.04935971,133.33,133.31,11.00819083]
[1742447490218,0.04935971,133.33,133.32,10.95134885]
[1742447491614,0.04935971,133.33,133.32,18.45114885]
[1742447493709,0.04935971,133.33,133.32,7.4998]
[1742447493913,0.04935971,133.33,133.31,18.50829083]
[1742447495022,0.04935971,133.33,133.32,7.4998]
[1742447496421,0.04935971,133.33,133.32,18.45114885]
[1742447499609,0.04935971,133.33,133.32,10.95134885]
[1742447500121,0.04935971,133.33,133.31,18.50829083]
[1742447500517,0.04935971,133.33,133.31,11.00819083]
[1742447501221,7.54865971,133.33,133.31,11.00819083]
[1742447501920,0.04935971,133.33,133.31,11.00819083]
[1742447502518,0.04935971,133.33,133.32,7.4998]
[1742447511329,0.04935971,133.33,133.31,18.50839083]
[1742447511614,0.04935971,133.33,133.31,11.00819083]
[1742447512019,0.04935971,133.33,133.31,18.50849083]
[1742447514020,0.04935971,133.33,133.32,7.4998]
[1742447518025,0.04935971,133.33,133.31,18.50829083]
[1742447519425,0.04935971,133.33,133.32,7.4998]
[1742447520220,0.04935971,133.33,133.31,18.50839083]
[1742447523127,0.04935971,133.33,133.32,7.4998]
[1742447526027,0.04935971,133.33,133.31,18.50839083]
[1742447526227,7.54905971,133.33,133.31,0.05684198]
[1742447526425,0.04935971,133.33,133.31,0.05684198]
[1742447526824,7.4998,133.32,133.31,0.05684198]
[1742447527219,0.04935971,133.33,133.31,0.05684198]
[1742447527425,7.54885971,133.33,133.31,0.05684198]
[1742447529028,7.4998,133.32,133.31,0.05684198]
[1742447536830,4.20865971,133.33,133.31,0.05684198]
[1742447537033,0.04935971,133.33,133.32,37.25134885]
[1742447537327,0.04935971,133.33,133.32,44.75114885]
[1742447539136,279.72103189,133.39,133.35,7.4978]
[1742447539137,275.68334885,133.39,133.35,7.4978]
[1742447539539,275.68334885,133.39,133.35,33.7978]
[1742447539738,283.17954885,133.39,133.35,33.7978]
[1742447540039,275.68334885,133.39,133.35,33.7978]
[1742447540430,0.05773497,133.38,133.36,0.05479729]
[1742447540742,7.55443497,133.38,133.36,0.05479729]
[1742447541540,7.497,133.37,133.36,0.05479729]
[1742447544240,7.55433497,133.38,133.36,0.05479729]
[1742447549753,0.05773497,133.38,133.37,10.95134885]
[1742447550151,0.05773497,133.38,133.37,18.44834885]
[1742447558265,269.67134885,133.45,133.37,72.95134885]
[1742447558465,4.1745,133.47,133.44,10.95134885]
[1742447558663,37.23134885,133.5,133.45,10.95134885]
[1742447559060,7.4908,133.48,133.45,10.95134885]
[1742447559368,7.54200597,133.48,133.45,11.00382672]
[1742447560562,0.05120597,133.48,133.45,11.00382672]
[1742447561568,0.05120597,133.48,133.47,10.95134885]
[1742447561767,0.05120597,133.48,133.47,18.44274885]
[1742447562771,0.05120597,133.48,133.47,10.95134885]
[1742447563662,0.05120597,133.48,133.47,18.44274885]
[1742447563873,258.68,133.52,133.47,10.95134885]
[1742447564169,258.68,133.52,133.49,10.95134885]
[1742447564365,266.1687,133.52,133.49,10.95134885]
[1742447564863,266.21767212,133.52,133.49,10.99917987]
[1742447565063,0.04897212,133.52,133.5,10.95134885]
[1742447565674,0.04897212,133.52,133.49,37.27917987]
[1742447565974,0.04897212,133.52,133.49,26.32783102]
[1742447566170,7.53787212,133.52,133.49,26.32783102]
[1742447566872,7.4892,133.51,133.49,0.04783102]
[1742447567068,11.00032097,133.52,133.49,0.04783102]
[1742447567467,11.00032097,133.52,133.45,10.95134885]
[1742447567468,18.44104885,133.5,133.45,10.95134885]
[1742447567772,10.95134885,133.49,133.45,37.23134885]
[1742447567971,7.4911,133.48,133.45,37.23134885]
[1742447568766,7.54517952,133.48,133.45,37.28013726]
[1742447570075,7.4914,133.47,133.45,37.28013726]
[1742447570877,7.4919,133.46,133.45,37.28013726]
[1742447571270,7.4919,133.46,133.45,11.00013726]
[1742447571770,7.4915,133.47,133.45,11.00013726]
[1742447571975,0.05407952,133.48,133.45,11.00013726]
[1742447572576,0.05407952,133.48,133.46,10.95134885]
[1742447573176,0.05407952,133.48,133.46,18.44294885]
[1742447573584,0.05407952,133.48,133.47,10.95134885]
[1742447574081,0.05407952,133.48,133.47,18.44274885]
[1742447578383,0.05407952,133.48,133.47,10.95134885]
[1742447581584,0.05407952,133.48,133.47,18.44274885]
[1742447591390,0.05407952,133.48,133.47,10.95134885]
[1742447592486,0.05407952,133.48,133.46,33.7717]
[1742447592790,0.05407952,133.48,133.47,10.95134885]
[1742447594095,0.05407952,133.48,133.47,18.44274885]
[1742447595996,30.4174,133.54,133.49,7.49]
[1742447596190,30.4174,133.54,133.49,44.70134885]
[1742447596695,7.4885,133.53,133.49,44.70134885]
[1742447597095,0.05036519,133.52,133.5,7.5385413]
[1742447597486,7.53906519,133.52,133.5,0.0488413]
[1742447597688,0.05036519,133.52,133.5,0.0488413]
[1742447598194,0.05036519,133.52,133.5,7.5382413]
[1742447598394,0.05036519,133.52,133.51,10.95134885]
[1742447599096,0.05036519,133.52,133.51,18.44044885]
[1742447600295,0.05036519,133.52,133.51,10.95134885]
[1742447603995,0.05036519,133.52,133.51,18.44044885]
[1742447604194,0.05036519,133.52,133.51,10.95134885]
[1742447604497,0.05036519,133.52,133.51,18.44044885]
[1742447605700,0.05036519,133.52,133.51,10.95134885]
[1742447606493,0.05036519,133.52,133.51,18.44044885]
[1742447607796,0.05036519,133.52,133.51,10.95134885]
[1742447609898,0.05036519,133.52,133.51,18.44044885]
[1742447610692,0.05036519,133.52,133.51,10.95134885]
[1742447612199,0.05036519,133.52,133.51,18.44044885]
[1742447618003,0.05036519,133.52,133.5,11.00019015]
[1742447618303,0.05036519,133.52,133.5,0.0488413]
[1742447618694,7.4891,133.51,133.5,0.0488413]
[1742447619697,7.53906519,133.52,133.5,0.0488413]
[1742447619902,7.53906519,133.52,133.5,11.00019015]
[1742447624209,0.05036519,133.52,133.5,18.48979015]
[1742447624404,0.05036519,133.52,133.5,11.00019015]
[1742447624807,0.05036519,133.52,133.51,7.4891]
[1742447625416,0.05036519,133.52,133.5,11.00019015]
[1742447626519,7.53926519,133.52,133.5,11.00019015]
[1742447626709,0.05036519,133.52,133.5,0.0488413]
[1742447627619,7.53916519,133.52,133.5,0.0488413]
[1742447628620,0.05036519,133.52,133.5,7.5384413]
[1742447629015,0.05036519,133.52,133.51,7.4891]
[1742447629221,0.05036519,133.52,133.51,18.44044885]
[1742447629618,0.05036519,133.52,133.51,44.70044885]
[1742447631320,0.05036519,133.52,133.51,37.21134885]
[1742447631914,1.9574,133.57,133.51,37.21134885]
[1742447632123,1.9574,133.57,133.54,10.95134885]
[1742447633116,9.49449596,133.57,133.54,11.00543747]
[1742447633320,2.00839596,133.57,133.54,11.00543747]
[1742447633523,7.4867,133.56,133.54,0.05408862]
[1742447636420,9.49439596,133.57,133.54,0.05408862]
[1742447637322,7.4865,133.56,133.54,0.05408862]
[1742447639426,2.00839596,133.57,133.54,7.54138862]
[1742447639613,2.00839596,133.57,133.54,0.05408862]
[1742447640721,7.4864,133.56,133.54,0.05408862]
[1742447641522,7.4869,133.55,133.54,0.05408862]
[1742447650834,10.95134885,133.55,133.46,10.34556104]
[1742447651135,10.95134885,133.53,133.48,10.95134885]
[1742447651339,26.24,133.52,133.48,10.95134885]
[1742447651530,37.19134885,133.52,133.47,10.95134885]
[1742447651731,39.31254885,133.52,133.47,10.95134885]
[1742447652036,7.4901,133.5,133.48,0.04829066]
[1742447653129,7.4901,133.5,133.48,10.99963951]
[1742447654337,7.4902,133.49,133.48,10.99963951]
[1742447655834,7.4902,133.49,133.48,0.04829066]
[1742447656236,33.7502,133.49,133.48,0.04829066]
[1742447658636,7.4919,133.46,133.44,10.95134885]
[1742447659338,10.95134885,133.48,133.44,10.95134885]
[1742447659837,0.04930075,133.47,133.45,11.00352693]
[1742447661040,7.54070075,133.47,133.45,11.00352693]
[1742447663543,0.04930075,133.47,133.45,18.49582693]
[1742447668141,2.1212,133.52,133.46,10.95134885]
[1742447668339,348.3029,133.53,133.5,10.95134885]
[1742447668538,346.26,133.53,133.5,10.95134885]
[1742447669238,320.0,133.53,133.5,18.49582975]
[1742447669446,0.05373545,133.53,133.5,11.00622975]
[1742447669747,7.4888,133.52,133.5,0.0548809]
[1742447672441,18.4933843,133.53,133.5,7.5445809]
[1742447672744,7.54203545,133.53,133.5,7.5445809]
[1742447673344,7.4886,133.52,133.5,0.0548809]
[1742447675749,18.4934843,133.53,133.5,0.0548809]
[1742447676240,7.4886,133.52,133.5,0.0548809]
[1742447684750,7.54193545,133.53,133.5,7.5445809]
[1742447684954,7.54193545,133.53,133.5,18.49592975]
[1742447685451,0.05373545,133.53,133.52,10.95134885]
[1742447686351,0.05373545,133.53,133.51,10.95134885]
[1742447686551,0.05373545,133.53,133.5,11.00622975]
[1742447686754,7.54173545,133.53,133.5,18.49562975]
[1742447691056,7.54173545,133.53,133.5,11.00622975]
[1742447692458,7.54173545,133.53,133.5,18.49572975]
[1742447695358,7.4886,133.52,133.5,11.00622975]
[1742447700267,7.4891,133.51,133.5,0.0548809]
[1742447703367,33.7288,133.52,133.5,0.0548809]
[1742447705074,7.4891,133.51,133.5,0.0548809]
[1742447718490,18.44044885,133.51,133.5,0.0548809]
[1742447719386,7.4921,133.46,133.44,37.19134885]
[1742447719881,7.4921,133.46,133.44,26.24]
[1742447720283,7.4921,133.46,133.43,44.68454885]
[1742447720690,7.54954577,133.46,133.43,44.73872697]
[1742447721191,7.54954577,133.46,133.43,33.78737812]
[1742447721588,7.4925,133.45,133.43,26.29417812]
[1742447722184,7.4925,133.45,133.43,33.78777812]
[1742447723987,7.54964577,133.46,133.43,26.29417812]
[1742447724385,11.00879462,133.46,133.43,26.29417812]
[1742447724787,7.4926,133.45,133.43,26.29417812]
[1742447724986,7.4926,133.45,133.43,0.05417812]
[1742447728493,11.00879462,133.46,133.43,0.05417812]
[1742447730099,7.4925,133.45,133.43,0.05417812]
[1742447730600,7.4931,133.44,133.43,0.05417812]
[1742447731092,18.44444885,133.44,133.43,0.05417812]
[1742447731291,7.4942,133.42,133.38,21.29690989]
[1742447731495,7.4942,133.42,133.38,47.55690989]
[1742447732100,7.4942,133.42,133.39,7.4956]
[1742447732397,7.54647366,133.41,133.39,0.05392376]
[1742447732605,0.05167366,133.41,133.4,7.4953]
[1742447732797,0.05167366,133.41,133.4,18.44664885]
[1742447733604,37.21134885,133.47,133.44,7.4931]
[1742447734604,37.21134885,133.47,133.43,7.4933]
[1742447734805,37.26653535,133.47,133.44,0.04735069]
[1742447735905,37.26653535,133.47,133.44,7.54035069]
[1742447737304,44.75793535,133.47,133.44,7.54035069]
[1742447737503,10.95134885,133.46,133.44,7.54035069]
[1742447739304,18.44334885,133.46,133.44,0.04735069]
[1742447739706,10.95134885,133.45,133.44,0.04735069]
[1742447740603,18.44384885,133.45,133.44,0.04735069]
[1742447748407,10.95134885,133.45,133.44,0.04735069]
[1742447748607,18.44344885,133.46,133.44,0.04735069]
[1742447749911,7.4921,133.46,133.44,0.04735069]
[1742447750110,18.44344885,133.46,133.44,0.04735069]
[1742447750813,7.4925,133.45,133.44,0.04735069]
[1742447758115,37.21134885,133.46,133.44,0.04735069]
[1742447758116,44.70354885,133.46,133.44,0.04735069]
[1742447759620,7.4925,133.45,133.44,0.04735069]
[1742447771235,7.4948,133.41,133.39,7.4955]
[1742447772332,7.54784244,133.41,133.39,7.55137542]
[1742447772835,7.54784244,133.41,133.39,0.05587542]
[1742447773033,7.4953,133.4,133.39,0.05587542]
[1742447777437,18.49929129,133.41,133.39,0.05587542]
[1742447779039,11.00439129,133.41,133.39,0.05587542]
[1742447779538,0.05304244,133.41,133.4,18.44664885]
[1742447779742,0.05304244,133.41,133.4,44.70664885]
[1742447787846,0.05304244,133.41,133.4,26.26]
[1742447788145,0.05304244,133.41,133.39,26.31587542]
[1742447788847,7.54784244,133.41,133.39,26.31587542]
[1742447789344,0.05304244,133.41,133.39,26.31587542]
[1742447789640,0.05304244,133.41,133.39,0.05587542]
[1742447790036,0.05304244,133.41,133.39,7.55137542]
[1742447791746,11.00439129,133.41,133.39,0.05587542]
[1742447793050,7.4953,133.4,133.39,0.05587542]
[1742447793948,18.44664885,133.4,133.39,0.05587542]
[1742447805361,7.497,133.37,133.34,37.21134885]
[1742447805763,7.4967,133.38,133.34,37.21134885]
[1742447806164,32.4781,133.42,133.36,10.95134885]
[1742447806363,43.42944885,133.42,133.37,37.21134885]
[1742447806565,0.05709369,133.4,133.37,37.21134885]
[1742447806760,0.05709369,133.4,133.38,0.05412393]
[1742447807464,7.55269369,133.4,133.38,0.05412393]
[1742447810769,7.55269369,133.4,133.38,7.55042393]
[1742447811067,0.05709369,133.4,133.38,7.55042393]
[1742447812268,7.55249369,133.4,133.38,7.55042393]
[1742447813771,320.0,133.53,133.39,10.95134885]
[1742447813972,10.95134885,133.5,133.45,10.95134885]
[1742447814172,18.44154885,133.5,133.46,26.26]
[1742447814373,10.95134885,133.5,133.46,26.26]
[1742447814971,0.04937145,133.49,133.47,0.05182721]
[1742447815273,11.0007203,133.49,133.47,0.05182721]
[1742447818176,18.4910203,133.49,133.47,0.05182721]
[1742447818376,10.95134885,133.48,133.47,0.05182721]
[1742447820179,18.44214885,133.48,133.47,0.05182721]
[1742447824586,0.04937145,133.49,133.47,0.05182721]
[1742447824587,11.0007203,133.49,133.47,0.05182721]
[1742447824979,11.0007203,133.49,133.47,7.54322721]
[1742447825582,0.04937145,133.49,133.47,7.54322721]
[1742447828687,7.53967145,133.49,133.47,0.05182721]
[1742447828890,0.04937145,133.49,133.47,0.05182721]
[1742447829190,0.04937145,133.49,133.47,7.54322721]
[1742447830790,0.04937145,133.49,133.48,7.4908]
[1742447832300,0.04937145,133.49,133.47,33.78292721]
[1742447835298,0.04937145,133.49,133.47,26.29182721]
[1742447836298,0.04937145,133.49,133.47,33.78302721]
[1742447837696,0.04937145,133.49,133.47,26.29182721]
[1742447838301,7.4908,133.48,133.47,26.29182721]
[1742447838701,7.4908,133.48,133.47,0.05182721]
[1742447839498,18.44214885,133.48,133.47,0.05182721]
[1742447843302,20.51824885,133.48,133.47,0.05182721]
[1742447843809,7.4938,133.43,133.41,10.95134885]
[1742447845005,7.54639483,133.43,133.41,11.00733158]
[1742447845207,0.05259483,133.43,133.41,18.50203158]
[1742447845709,7.54619483,133.43,133.41,18.50203158]
[1742447846709,7.54619483,133.43,133.41,11.00733158]
[1742447847308,7.4942,133.42,133.41,11.00733158]
[1742447847607,7.4942,133.42,133.41,0.05598273]
[1742447847808,0.05259483,133.43,133.41,0.05598273]
[1742447849306,7.4942,133.42,133.41,0.05598273]
[1742447859626,18.44554885,133.42,133.41,0.05598273]
[1742447860921,7.4942,133.42,133.41,0.05598273]
[1742447867830,18.44554885,133.42,133.41,0.05598273]
[1742447872130,7.4964,133.39,133.34,2.1239]
[1742447872325,37.21134885,133.42,133.37,10.95134885]
[1742447872932,7.4953,133.41,133.37,18.44804885]
[1742447873231,37.21134885,133.42,133.38,10.95134885]
[1742447873433,7.54817959,133.4,133.38,11.00055387]
[1742447874135,7.54817959,133.4,133.38,0.04920502]
[1742447878839,0.05277959,133.4,133.39,10.95134885]
[1742447879231,10.95134885,133.45,133.4,10.95134885]
[1742447879431,7.4941,133.43,133.39,10.95134885]
[1742447880237,7.54339335,133.42,133.4,0.04818004]
[1742447881927,7.4947,133.41,133.4,0.04818004]
[1742447888539,18.44604885,133.41,133.4,0.04818004]
[1742447889343,7.4947,133.41,133.4,0.04818004]
[1742447898647,7.4963,133.39,133.36,26.26]
[1742447899048,7.4963,133.39,133.36,33.7575]
[1742447899758,7.55251833,133.39,133.36,33.80636747]
[1742447900757,0.05621833,133.39,133.37,7.4969]
[1742447901061,0.05621833,133.39,133.37,18.44824885]
[1742447901560,0.05621833,133.39,133.37,10.95134885]
[1742447901863,7.55211833,133.39,133.37,10.95134885]
[1742447902060,0.05621833,133.39,133.36,26.30886747]
[1742447902361,7.4966,133.38,133.36,26.30886747]
[1742447902855,7.55231833,133.39,133.36,33.80606747]
[1742447903064,0.05621833,133.39,133.37,10.95134885]
[1742447906861,7.55211833,133.39,133.37,10.95134885]
[1742447910768,7.4964,133.38,133.37,10.95134885]
[1742447911066,0.05621833,133.39,133.37,10.95134885]
[1742447911259,7.55231833,133.39,133.37,10.95134885]
[1742447914569,7.4964,133.38,133.37,10.95134885]
[1742447917871,7.55241833,133.39,133.37,10.95134885]
[1742447921271,7.4965,133.38,133.36,44.75771632]
[1742447921769,7.4965,133.38,133.36,37.26021632]
[1742447922867,7.4965,133.38,133.36,11.00021632]
[1742447923669,7.4965,133.38,133.36,18.49771632]
[1742447924474,7.4965,133.38,133.36,11.00021632]
[1742447925276,7.55241833,133.39,133.36,11.00021632]
[1742447925973,7.55241833,133.39,133.36,18.49751632]
[1742447926770,0.05621833,133.39,133.37,7.4969]
[1742447926974,0.05621833,133.39,133.38,10.95134885]
[1742447927879,0.05621833,133.39,133.38,18.44774885]
[1742447930673,0.05621833,133.39,133.37,7.4967]
[1742447930879,0.05621833,133.39,133.37,18.44804885]
[1742447932177,0.05621833,133.39,133.38,10.95134885]
[1742447933278,0.05621833,133.39,133.37,7.4967]
[1742447933474,7.55231833,133.39,133.37,10.95134885]
[1742447933674,0.05621833,133.39,133.37,10.95134885]
[1742447933876,0.05621833,133.39,133.37,18.44834885]
[1742447934378,0.05621833,133.39,133.37,10.95134885]
[1742447935077,0.05621833,133.39,133.37,18.44824885]
[1742447935780,7.55231833,133.39,133.37,10.95134885]
[1742447936176,0.05621833,133.39,133.37,10.95134885]
[1742447936378,7.55241833,133.39,133.36,7.54616747]
[1742447936680,7.55241833,133.39,133.36,18.49751632]
[1742447939277,7.55241833,133.39,133.36,11.00021632]
[1742447942581,7.55241833,133.39,133.36,18.49771632]
[1742447944984,7.55241833,133.39,133.36,11.00021632]
[1742447945685,7.4965,133.38,133.36,11.00021632]
[1742447946084,0.05621833,133.39,133.36,11.00021632]
[1742447947288,7.4966,133.38,133.36,11.00021632]
[1742447947986,7.55231833,133.39,133.36,11.00021632]